Cogmind - Beta 11.1 @@@ ROGUE MODE // 2022.04.22 @ 20:17:00 Player: Decinym Result: Destroyed by DAS Turret with DAS Cannon Performance ------------- Evolutions (1) 500 Regions Visited (5) 1000 Robots Destroyed (67) 335 Value Destroyed (1385) 1385 Prototype IDs (27) 540 Alien Tech Used (0) 0 Bonus (223) 223 TOTAL SCORE: 3983 Bonus ------- Aligned with FarCom 300 Friendly Fire -77 Cogmind --------- Core Integrity 0/400 Matter 300/300 Energy 276/280 System Corruption 0% Temperature Cool (1) Movement Walking (200) Ox1 Location -9/Exiles Parts ------- > --- POWER (1) -------- Heavy Ion Engine > --- PROPULSION (2) --- Makeshift Leg Advanced Myomer Leg > --- UTILITY (4) ------ Improved Heat Sink High-capacity Storage Unit Makeshift Salvage Targeting Computer Targeting Computer > --- WEAPON (2) ------- Heavy Assault Rifle Improved Assault Rifle > --- INVENTORY (20) --- Reinforced Fission Core Makeshift Leg Makeshift Leg Makeshift Leg High-capacity Matter Pod (200) Advanced Weapon Cycler 8R-AWN's Armor/EX Sensor Drone Bay (20/20) Heavy Assault Rifle Heavy Assault Rifle 8R-AWN's Boregun Rocket Launcher Plasma Cutter Makeshift Axe Signal Generator Peak State ------------ > --- POWER ------------ Heavy Ion Engine > --- PROPULSION ------- Makeshift Leg Advanced Myomer Leg > --- UTILITY ---------- Improved Heat Sink Large Storage Unit Makeshift Salvage Targeting Computer Targeting Computer > --- WEAPON ----------- Improved Assault Rifle Improved Assault Rifle > --- INVENTORY -------- Reinforced Fission Core Makeshift Leg High-capacity Matter Pod Advanced Weapon Cycler 8R-AWN's Armor/EX Sensor Drone Bay Heavy Assault Rifle Heavy Assault Rifle Heavy Assault Rifle 8R-AWN's Boregun Rocket Launcher Plasma Cutter Signal Generator [Rating: 38] Favorites ----------- Power Heavy Ion Engine Engine Heavy Ion Engine Propulsion Light Treads Treads Light Treads Leg Aluminum Leg Utility Large Storage Unit Device Improved Heat Sink Storage Large Storage Unit Processor Targeting Computer Protection Utility Shielding Weapon Improved Assault Rifle Energy Gun Small Laser Ballistic Gun Improved Assault Rifle Special Weapon Plasma Cutter Build | -11 -10 -10 -9 -9 -9 ------- Run | Scr Mat Min Mat Min Exi Slots Evolved 2 | . . . 2 . . Power . | . . . . . . Propulsion . | . . . . . . Utility 2 | . . . 2 . . Weapon . | . . . . . . Parts Attached 38 | . 6 1 16 3 12 Power 4 | . . 1 2 . 1 Engine 4 | . . 1 2 . 1 Core . | . . . . . . Reactor . | . . . . . . Propulsion 13 | . 2 . 6 . 5 Treads 7 | . 2 . 2 . 3 Leg 6 | . . . 4 . 2 Wheel . | . . . . . . Hover . | . . . . . . Flight . | . . . . . . Utility 11 | . 2 . 4 2 3 Device 3 | . 1 . . 1 1 Storage 2 | . 1 . . . 1 Processor 2 | . . . 1 . 1 Hackware . | . . . . . . Protection 4 | . . . 3 1 . Artifact . | . . . . . . Weapon 10 | . 2 . 4 1 3 Energy Gun . | . . . . . . Energy Cannon . | . . . . . . Ballistic Gun 9 | . 2 . 4 1 2 Ballistic Cannon . | . . . . . . Launcher . | . . . . . . Special Weapon 1 | . . . . . 1 Impact Weapon . | . . . . . . Slashing Weapon . | . . . . . . Piercing Weapon . | . . . . . . Special Melee Weapon . | . . . . . . Unidentified Prototypes 4 | . . . 2 1 1 Parts Lost 13 | . . . 7 . 6 Power 2 | . . . 1 . 1 Propulsion 5 | . . . 2 . 3 Utility 4 | . . . 2 . 2 Weapon 2 | . . . 2 . . Highest Loss Streak 6 | . . . 4 . 6 To Critical Strikes 4 | . . . . . 4 Average Slot Usage (%) 98 | . 97 100 96 100 98 Engine 11 | . 14 14 10 11 11 Treads 19 | . 17 28 6 22 20 Leg 3 | . 10 . 14 . 1 Device 5 | . 12 14 4 . 1 Storage 11 | . 14 14 11 11 11 Processor 7 | . . . 8 11 11 Protection 13 | . . . 19 22 17 Ballistic Gun 23 | . 24 28 21 22 21 Naked Turns . | . . . . . . Heaviest Build 55 | 12 32 32 38 38 55 Greatest Support 50 | 20 40 40 40 40 50 Greatest Overweight (x) 1 | . . . 1 . 1 Average Overweight (x) . | . . . . . . Largest Inventory Capacity 20 | . 15 15 15 15 20 Average Capacity 14 | . 12 15 15 15 15 Most Carried 17 | . 11 14 15 15 17 Average Carried 13 | . 8 11 13 14 13 Final Capacity 20 | 8 15 15 15 15 20 Final Carried 17 | 6 11 14 15 15 17 Class Distribution -------------------- 94% | Mutant 5% | Scavenger-Mutant Dominant Class ---------------- Mutant | -10/Materials Mutant | -10/Mines Mutant | -9/Materials Mutant | -9/Mines Mutant | -9/Exiles Resources | -11 -10 -10 -9 -9 -9 ----------- Run | Scr Mat Min Mat Min Exi Matter Collected 1794 | 200 123 386 590 210 285 Remotely . | . . . . . . Salvage Created 2129 | . 205 447 835 476 166 Parts 139 | . 10 38 58 19 14 Haulers Intercepted 2 | . . . 2 . . Recyclers Shooed 1 | . . . 1 . . Parts Field Recycled . | . . . . . . Retrieved Matter . | . . . . . . Parts Self-Destructed . | . . . . . . Prevented . | . . . . . . Kills | -11 -10 -10 -9 -9 -9 ------- Run | Scr Mat Min Mat Min Exi Combat Hostiles Destroyed 46 | . 4 12 18 12 . Guns 46 | . 4 12 18 12 . Classes Destroyed 10 | . 1 4 3 1 1 Worker 5 | . . . 4 1 . Builder 3 | . . 1 2 . . Tunneler 5 | . . 4 . 1 . Hauler 2 | . . . 2 . . Swarmer 16 | . . 5 7 4 . Grunt 25 | . 4 6 8 7 . Brawler 1 | . . . . 1 . Sentry 3 | . . . 3 . . Zionite 7 | . . . . . 7 Assembled 1 | . . 1 . . . Best Kill Streak 9 | . 2 6 9 6 4 Combat Bots Only 7 | . 2 4 7 6 . Max Kills in Single Turn 2 | . 1 1 2 1 1 Gunslinging . | . . . . . . Exploded . | . . . . . . Melee . | . . . . . . Uniques/NPCs Destroyed 3 | . . . . . 3 EX-DEC (-9/Exiles) EX-BIN (-9/Exiles) EX-HEX (-9/Exiles) Combat | -11 -10 -10 -9 -9 -9 -------- Run | Scr Mat Min Mat Min Exi Damage Taken 2741 | . 233 466 880 303 859 Core 591 | . 54 111 185 41 200 Absorbed by Shields . | . . . . . . Redirected to Shielding 64 | . . . 44 5 15 Core Remaining (%) 67 | 100 . 34 . . . Volleys Fired 204 | . 16 40 84 30 34 Largest 2 | . 2 2 2 2 2 Hottest 60 | . 60 46 46 46 46 Shots Fired 394 | . 31 80 155 60 68 Gun 391 | . 31 80 155 60 65 Cannon . | . . . . . . Launcher . | . . . . . . Special 3 | . . . . . 3 Kinetic 377 | . 17 80 155 60 65 Thermal 17 | . 14 . . . 3 Explosive . | . . . . . . Electromagnetic . | . . . . . . Robot Hit Streak 29 | . 6 6 12 29 29 Robot Miss Streak 8 | . 3 8 6 2 3 Penetration Max . | . . . . . . Secondary Targets 6 | . 1 2 2 1 . Max Gunslinging Chain 1 | . 1 1 1 1 . Shots Hit Robots 263 | . 18 48 102 39 56 Core Hits 105 | . 9 23 34 22 17 Critical Kills 1 | . 1 . . . . Critical Parts Destroyed 1 | . . 1 . . . Critical Strikes 3 | . 1 1 . . 1 Destroy 3 | . 1 1 . . 1 Melee Attacks . | . . . . . . Impact . | . . . . . . Slashing . | . . . . . . Piercing . | . . . . . . Sneak Attacks . | . . . . . . Combat Hostiles . | . . . . . . Follow-up Attacks . | . . . . . . Damage Inflicted 3957 | . 170 735 1615 577 860 Guns 3945 | . 170 735 1615 577 848 Cannons . | . . . . . . Explosions . | . . . . . . Melee . | . . . . . . Ramming . | . . . . . . Kinetic 3869 | . 94 735 1615 577 848 Thermal 88 | . 76 . . . 12 Explosive . | . . . . . . Electromagnetic . | . . . . . . Impact . | . . . . . . Slashing . | . . . . . . Piercing . | . . . . . . Highest Corruption 2 | . 2 2 . . . Average Corruption 2 | . 2 2 . . . Corruption Purged . | . . . . . . Corruption Blocked . | . . . . . . Effects 17 | . 3 14 . . . Message Errors 5 | . 1 4 . . . Matter Fused 4 | . 1 3 . . . Heat Flow Errors 2 | . . 2 . . . Data Loss (minor) 3 | . . 3 . . . Data Loss (major) 2 | . . 2 . . . Misfires 1 | . 1 . . . . Overload Shots . | . . . . . . Overflow Damage . | . . . . . . Projectiles . | . . . . . . Explosions . | . . . . . . Melee . | . . . . . . Knockbacks . | . . . . . . Impact . | . . . . . . Kinetic . | . . . . . . Secondary . | . . . . . . Self-Inflicted Damage . | . . . . . . Shots . | . . . . . . Rammed . | . . . . . . Targets Rammed . | . . . . . . Kicked . | . . . . . . Crushed . | . . . . . . Highest Temperature 181 | . 171 181 5 7 . Average Temperature 50 | . 85 65 2 2 . Received Heat Transfer 713 | . 150 230 216 117 . Siege Activations . | . . . . . . Robots Corrupted . | . . . . . . Combat Hostiles . | . . . . . . Parts Fried . | . . . . . . Impact Corruptions . | . . . . . . Robots Melted . | . . . . . . Combat Hostiles . | . . . . . . Parts Melted 1 | . 1 . . . . Heat Transferred 230 | . 175 . . . 55 Parts Sabotaged . | . . . . . . Parts Stolen . | . . . . . . Parts Stripped . | . . . . . . Power Chain Reactions . | . . . . . . Missiles Intercepted . | . . . . . . Alert | -11 -10 -10 -9 -9 -9 ------- Run | Scr Mat Min Mat Min Exi Peak Influence 333 | . 115 125 244 333 . Initial 48 | . . 5 48 48 . Average 99 | . 76 51 126 147 . Maximum Alert Level 1 | . . . 1 1 . Low Security (%) 89 | . 100 100 68 86 . Level 1 10 | . . . 31 13 . Level 2 . | . . . . . . Level 3 . | . . . . . . Level 4 . | . . . . . . Level 5 . | . . . . . . High Security . | . . . . . . Max Security . | . . . . . . Squads Dispatched 4 | . . . 3 1 . Investigation 1 | . . . 1 . . Extermination . | . . . . . . Reinforcement 2 | . . . 2 . . Assault 1 | . . . . 1 . Garrison . | . . . . . . Intercept . | . . . . . . Searches Triggered . | . . . . . . Construction Impeded . | . . . . . . Haulers Reinforced . | . . . . . . Active Scanning Responses . | . . . . . . Cargo Convoy Interrupts . | . . . . . . Stealth | -11 -10 -10 -9 -9 -9 --------- Run | Scr Mat Min Mat Min Exi Distress Signals 5 | . 1 2 2 . . Communications Jammed . | . . . . . . Distress Signals . | . . . . . . Times Spotted 81 | . 7 14 23 11 26 Peak Tracking Total 9 | . 3 3 4 3 9 Tactical Retreats 5 | . . 1 . . 4 Traps | -11 -10 -10 -9 -9 -9 ------- Run | Scr Mat Min Mat Min Exi Traps Triggered 2 | . 1 . 1 . . Indirectly . | . . . . . . Trap Hack Attempts . | . . . . . . Triggered . | . . . . . . Disarmed . | . . . . . . Reprogrammed . | . . . . . . Reused 2 | . . . . . 2 Traps Extracted . | . . . . . . Installed 3 | . . . . . 3 Triggered . | . . . . . . Most Traps Carried 3 | . . . . 3 3 Machines | -11 -10 -10 -9 -9 -9 ---------- Run | Scr Mat Min Mat Min Exi Machines Disabled 2 | . . . 1 . 1 Max in Single Turn 1 | . . . 1 . . Machines Sabotaged . | . . . . . . Garrisons Compromised . | . . . . . . Overloaded Fab Kills . | . . . . . . Hacking | -11 -10 -10 -9 -9 -9 --------- Run | Scr Mat Min Mat Min Exi Machines Accessed 8 | . 3 . 2 1 2 Terminals 5 | . 3 . 2 . . Fabricators . | . . . . . . Repair Stations . | . . . . . . Recycling Units . | . . . . . . Scanalyzers . | . . . . . . Garrison Access . | . . . . . . Total Hacks 28 | . 7 . 10 1 10 Successful 14 | . . . 3 1 10 Failed 14 | . 7 . 7 . . Catastrophic 6 | . 5 . 1 . . Database Lockouts . | . . . . . . Manual 8 | . 4 . 3 . 1 Terminals 17 | . 7 . 10 . . Fabricators . | . . . . . . Repair Stations . | . . . . . . Recycling Units . | . . . . . . Scanalyzers . | . . . . . . Garrison Access . | . . . . . . Terminal Hacks 14 | . . . 3 1 10 Record 9 | . . . . . 9 Open Door 1 | . . . . 1 . Branch Access Points 1 | . . . 1 . . Unreport Threat 2 | . . . 2 . . EX-Prototype ID Bank 1 | . . . . . 1 Fabricator Hacks . | . . . . . . Repair Station Hacks . | . . . . . . Recycling Unit Hacks . | . . . . . . Scanalyzer . | . . . . . . Garrison Access Hacks . | . . . . . . Unauthorized Hacks . | . . . . . . Terminals . | . . . . . . Fabricators . | . . . . . . Repair Stations . | . . . . . . Recycling Units . | . . . . . . Scanalyzers . | . . . . . . Garrison Access . | . . . . . . Data Cores Recovered . | . . . . . . Used . | . . . . . . Hacking Detections 5 | . 3 . 2 . . Full Trace Events 1 | . 1 . . . . Feedback Events . | . . . . . . Feedback Blocked . | . . . . . . Robot Schematics Acquired . | . . . . . . Robots Built . | . . . . . . Authchips . | . . . . . . Time . | . . . . . . Total Robot Build Rating . | . . . . . . Part Schematics Acquired . | . . . . . . Parts Built . | . . . . . . Authchips . | . . . . . . Time . | . . . . . . Total Part Build Rating . | . . . . . . Parts Repaired . | . . . . . . Time . | . . . . . . Parts Recycled . | . . . . . . Recycled Matter . | . . . . . . Retrieved Matter . | . . . . . . Retrieved Components . | . . . . . . Parts Scanalyzed . | . . . . . . Part Schematics Acquired . | . . . . . . Parts Damaged . | . . . . . . Bothacking | -11 -10 -10 -9 -9 -9 ------------ Run | Scr Mat Min Mat Min Exi Used RIF Installer . | . . . . . . Robots Hacked . | . . . . . . Non-combat . | . . . . . . Combat . | . . . . . . Robot Hacks Applied . | . . . . . . Relay Couplers Released . | . . . . . . Fabnet Peak Effective % . | . . . . . . Robots Rewired . | . . . . . . Allies Hacked . | . . . . . . Hacks Repelled . | . . . . . . Allies | -11 -10 -10 -9 -9 -9 -------- Run | Scr Mat Min Mat Min Exi Total Allies 6 | . . . . 6 . Largest Group 6 | . . . . 6 5 Highest-Rated Group 114 | . . . . 114 102 Highest-Rated Ally 31 | . . . . 31 31 Total Orders 3 | . . . . . 3 STAY 3 | . . . . . 3 Ally Attacks 28 | . . . . . 28 Total Damage 814 | . . . . . 814 Kills 4 | . . . . . 4 Allies Corrupted . | . . . . . . Allies Melted . | . . . . . . Turrets Deployed 3 | . . . . . 3 Intel | -11 -10 -10 -9 -9 -9 ------- Run | Scr Mat Min Mat Min Exi Robot Analysis Total . | . . . . . . Derelict Logs Recovered 3 | . . 1 . 2 . Drone Launches . | . . . . . . Drone Recoveries . | . . . . . . Exploration | -11 -10 -10 -9 -9 -9 ------------- Run | Scr Mat Min Mat Min Exi Turns Passed 5166 | . 510 1064 716 915 1961 Spaces Moved 2692 | 1 303 519 242 499 1128 Core . | . . . . . . Treads 2347 | . 190 519 93 499 1046 Legs 345 | 1 113 . 149 . 82 Wheels . | . . . . . . Hover . | . . . . . . Flight . | . . . . . . Fastest Speed 120 | 120 120 160 160 160 130 Average Speed 160 | 120 145 160 178 160 160 Slowest Speed 200 | 120 160 160 190 160 200 Overloaded Moves . | . . . . . . Propulsion Burnouts . | . . . . . . Robots Hopped . | . . . . . . Cave-ins Triggered . | . . . . . . Exploration Rate (%) 61 | 2 67 99 28 87 85 Regions Visited 5 Branch Regions 3 Pre-discovered Areas 2 | . . 1 . . 1 Known Exits Taken 1 | . . . 1 . . Unknown Exits Taken 4 | 1 1 1 . 1 . Scrap Searched 3 | . . 2 . 1 . Spaces Dug . | . . . . . . Terrain Destroyed . | . . . . . . Melee . | . . . . . . Projectile . | . . . . . . AOE . | . . . . . . Terrain Rammed . | . . . . . . Walls Destroyed . | . . . . . . Machines Disabled . | . . . . . . Actions | -11 -10 -10 -9 -9 -9 --------- Run | Scr Mat Min Mat Min Exi Total 3158 | . 348 672 373 558 1207 Wait 147 | . 6 111 11 15 4 Move 2687 | . 302 518 241 498 1128 Hop . | . . . . . . Pick Up 43 | . 10 2 12 5 14 Fast Attach 13 | . 3 . 5 2 3 Attach 11 | . . . 7 . 4 Detach . | . . . . . . Swap 14 | . 3 1 4 1 5 Drop 36 | . 8 . 9 7 12 Fire 204 | . 16 40 84 30 34 Melee . | . . . . . . Ram . | . . . . . . Kick . | . . . . . . Crush . | . . . . . . Escape Stasis . | . . . . . . Rewire . | . . . . . . Trap 3 | . . . . . 3 Miscellaneous . | . . . . . . Route ------- -11/Scrapyard -10/Materials (discovered 3 exits: *Mat x2 / [*Min]) -10/Mines (discovered 2 exits: *Mat x2) -9/Materials (discovered 2 exits: *Min / Sto) -9/Mines (discovered 3 exits: [*Mat x2] / *Exi) -9/Exiles History --------- Turn | Location | Event 1 | -11/Scrapyard | Discovered new exit (range 0) 1 | -11/Scrapyard | Entered Materials 272 | -10/Materials | Discovered new exit (range 11) 300 | -10/Materials | Build established: Mutant 378 | -10/Materials | Discovered new exit (range 16) 428 | -10/Materials | Discovered new exit (range 8) 511 | -10/Materials | Entered Mines 515 | -10/Mines | Met a Derelict bent on vengeance 1170 | -10/Mines | Excavation squad dispatched 1170 | -10/Mines | A large section of the Mines collapsed 1307 | -10/Mines | Core integrity fell below 50% 1371 | -10/Mines | Discovered new exit (range 7) 1453 | -10/Mines | Discovered new exit (range 9) 1575 | -10/Mines | Entered Materials 1575 | -9/Materials | Evolved 2 slots: Utility x2 1582 | -9/Materials | Identified exit to Mines 1582 | -9/Materials | Identified exit to Storage 1737 | -9/Materials | Lost 4 parts (2n1u1w) 1878 | -9/Materials | Lost 3 parts (1p1u1w) 2218 | -9/Materials | Destroyed 7 combat bots 2291 | -9/Materials | Entered Mines 2344 | -9/Mines | Found the Drone Emporium 2352 | -9/Mines | Found Prototype Device 2352 | -9/Mines | Identified Sensor Drone Bay 2390 | -9/Mines | Discovered new exit (range 7) 2435 | -9/Mines | Core integrity fell below 50% 2463 | -9/Mines | Deemed a non-threat by the Exiles lab entrance 2463 | -9/Mines | Discovered new exit (range 5) 2509 | -9/Mines | Found a hidden stash of uninstalled traps 2561 | -9/Mines | Discovered new exit (range 15) 2667 | -9/Mines | Learned Materials emergency access door positions 2721 | -9/Mines | Assisted by bots powering up and referring to "LRC-V3" 2911 | -9/Mines | Met a Derelict testing a Signal Generator 2933 | -9/Mines | Found Signal Generator 3206 | -9/Mines | Entered Exiles 3206 | -9/Exiles | Accompanied by 5 allies 3236 | -9/Exiles | Led the pair of lost Derelicts to a safe place 3246 | -9/Exiles | Met 8R-AWN 3272 | -9/Exiles | Met EX-HEX 3341 | -9/Exiles | Met EX-BIN 3361 | -9/Exiles | Aligned with FarCom system 3363 | -9/Exiles | Given EX-Vault access code 3400 | -9/Exiles | Opened EX-Vault 3433 | -9/Exiles | Warned to stay clear of 0b10 Research branches 3485 | -9/Exiles | Met EX-DEC 3491 | -9/Exiles | Learned location of Zion (-6) 3558 | -9/Exiles | Visited The Gauntlet 4205 | -9/Exiles | Found Deploy-a-Sentry 4313 | -9/Exiles | DAS Turret deployed 4421 | -9/Exiles | Found Deploy-a-Sentry 4510 | -9/Exiles | DAS Turret deployed 4600 | -9/Exiles | Found Deploy-a-Sentry 4761 | -9/Exiles | DAS Turret deployed 4764 | -9/Exiles | Attacked by the Exiles 4770 | -9/Exiles | Allies destroyed EX-DEC 4772 | -9/Exiles | Allies destroyed EX-BIN 4781 | -9/Exiles | Allies destroyed EX-HEX 4831 | -9/Exiles | Found Prototype Ballistic Gun 4834 | -9/Exiles | Found Prototype Protection 4847 | -9/Exiles | Lost 6 parts (1p3n2u) 4918 | -9/Exiles | Core integrity fell below 20% 5167 | -9/Exiles | Destroyed by DAS Turret with DAS Cannon Last Messages --------------- 04999_ Identified Adv. Myomer Leg. 05001_ Acquired 18 matter. 05007_ Acquired 15 matter. 05009_ Acquired Mak. Salvage Targeting Computer. 05028_ ZX-C33 destroyed. 05032_ Acquired 30 matter. 05037_ DK-RAY destroyed. 05040_ AM-PHS destroyed. 05046_ 5L-KAT destroyed. 05049_ Dropped Lgt. Treads. 05050_ Acquired 24 matter. 05055_ Acquired Mak. Leg. 05058_ Dropped Imp. Assault Rifle. 05059_ Acquired 27 matter. 05063_ Acquired Mak. Leg. 05066_ Dropped Lrg. Storage Unit. 05071_ Acquired Mak. Leg. 05072_ Acquired 2 matter. 05104_ Acquired Mak. Axe. 05165_ Acquired 8 matter. Map ----- +----------------------------------------------------+ | #???????????? ""?????????#" """""""""#????? | | ###???????????" "?????????##" ###########????? | | ##??????????# #????????##"" #??????????????? | | ######???### ###?######"" #??????????????? | | """#####X# #"###""""""" ##?????????????? | | """""" " ""!% ##???########## | | "" """ "%!! #####""""""""" | | " " !!!! " """ """ | | ## ! "" " | | ?### " " | | ???## " | | ????## " | | ?????##" | | ??????#""" """""" | | ?????##" t ######""" | | ?????#"" ""##????#####""" | | ????##""" """##?????????##""" | | ????#""" """##???????????#"""" | | ????#" "% ""#???????????##"" | | ???##"% ########??####"""" | | ???#% " ##aaa####""" | | ???##t % % % % % """" | | ????##"" % | | ?????#""" !% | | ?????## %& % " | | ??????#" % !%@%" "" "" | | ??????#"""" !%""## ##""" " " "" | | ??????#""% ""#### ######""" """ # | | ??????#" """"##??# #????###""""# | | ??????#""" """#??## ####???######## # | | ??????## ""##??#! "!#??????????#### | | ???????#"" """##???#" !#?????????????? | | ???????##""" ##????#" "#?????????????? | | ????????##"""" ##?????#!!""!"#?????????????? | | ?????????### #??????########?????????????? | | ???????????##### ##???????????????????????????? | | ???????????????## #????????????????????????????? | | ????????????????# #????????????????????????????? | | ????????????????# #????????????????????????????? | | ????????????????# #????????????????????????????? | | ??????####??????# #????????????????????????????? | | ""#??#""""""????# #????????????????????????????? | | ""#??#"""""""#??# #????????????????????????????? | | "#??#" """"#??# #????????????????????????????? | | ""#??#"" """#??# #????????????????????????????? | | ""????"" ""???# #????????????????????????????? | | ########"""###### ########?????????????????????? | | """""""" """ """""""#?????????????????????? | | """"""" * == "#"" "?????????????????? | | = " "?????????????????? | +----------------------------------------------------+ Best States ------------- Heat Dissipation 42 Energy Generation 14 Energy Capacity 280 Matter Stores 300 Matter Capacity 300 Sight Range 16 Terrain Scan Density 10 Armor Coverage 150 Utility Shielding 33 Weapon Shielding 33 Evasion (%) 55 Targeting Accuracy 5 Recoil Reduction 2 Salvage Targeting 4 Item Schematics ----------------- None Robot Schematics ------------------ None Fabricated ------------ Nothing Alien Tech Used ----------------- None Achievements -------------- None Challenges ------------ None Game ------ Seed ClaymoresFrostScreen Manual? 0 Play Time 00:26:33 Cumulative 318.2 hours Start 2022.04.22 @ 19:53:17 End 2022.04.22 @ 20:17:00 Sessions 1 Manual Loads 0 Difficulty Rogue Special Mode None Game No. 352 Rogue 352 Adventurer 0 Explorer 0 Win Type - Total 28 Types 17/3/2/1/2/0/3/0/0 Lore% 86 Gallery% 83 Achievement% 80 Wizard Run 0 Options --------- ASCII 0 Keyboard 0 Movement Arrows Keybinds 0 Fullscreen 2 Font 18/SmallcapsGlow Map View 76x50 Tactical HUD 1 Map Filters NONE Filters NONE Steam 1 RUN: adcbc66d-c71f-48ee-b2c7-c32d03adaa1a